bitfinex/quotes_BTCUSD_20260110
["timestamp","ask_amount","ask_price","bid_price","bid_amount"]
[1768048449078,0.02208,90669.0,90663.0,0.01102985]
[1768048450644,0.02208,90669.0,90664.0,0.01102973]
[1768048450869,0.02208,90669.0,90665.0,0.01102961]
[1768048451065,0.02208,90669.0,90664.0,0.01102973]
[1768048452535,0.02208,90669.0,90665.0,0.01102961]
[1768048452864,0.02208,90669.0,90664.0,0.01102973]
[1768048453376,0.02208,90669.0,90663.0,0.01102985]
[1768048454414,0.02208,90669.0,90664.0,0.01102973]
[1768048454785,0.02208,90669.0,90663.0,0.01102985]
[1768048457485,0.02208,90669.0,90662.0,0.01141997]
[1768048457693,0.0475386,90668.0,90663.0,0.01102985]
[1768048458644,0.0475386,90668.0,90664.0,0.01102973]
[1768048458947,0.02208,90669.0,90663.0,0.01102985]
[1768048459178,0.02208,90669.0,90664.0,0.01102973]
[1768048459341,0.02208,90669.0,90663.0,0.01102985]
[1768048459527,0.02208,90669.0,90664.0,0.01102973]
[1768048460242,0.02208,90669.0,90663.0,0.01102985]
[1768048460641,0.02208,90669.0,90664.0,0.01102973]
[1768048461084,0.0696186,90669.0,90665.0,0.01102961]
[1768048461439,0.0696186,90669.0,90664.0,0.01102973]
[1768048464788,0.0696186,90669.0,90663.0,0.01102985]
[1768048464975,0.0696186,90669.0,90664.0,0.01102973]
[1768048465175,0.0696186,90669.0,90663.0,0.01102985]
[1768048466319,0.0696186,90669.0,90664.0,0.01102973]
[1768048466497,0.0696186,90669.0,90663.0,0.01102985]
[1768048467345,0.01033799,90668.0,90663.0,0.01102985]
[1768048467710,0.05787659,90668.0,90663.0,0.01102985]
[1768048468012,0.0475386,90668.0,90663.0,0.01102985]
[1768048468246,0.0475386,90668.0,90664.0,0.01102973]
[1768048468675,0.0475386,90668.0,90663.0,0.01102985]
[1768048470325,0.0475386,90668.0,90664.0,0.01102973]
[1768048470532,0.0475386,90668.0,90663.0,0.01102985]
[1768048471503,0.0475386,90668.0,90664.0,0.01102973]
[1768048473902,0.0475386,90668.0,90663.0,0.01102985]
[1768048474121,0.0475386,90668.0,90664.0,0.01102973]
[1768048474636,0.0475386,90668.0,90663.0,0.01102985]
[1768048474809,0.0475386,90668.0,90664.0,0.01102973]
[1768048476747,0.0475386,90668.0,90663.0,0.01102985]
[1768048479311,0.0475386,90668.0,90662.0,0.00039]
[1768048479500,0.0475386,90668.0,90662.0,0.01141997]
[1768048480686,0.0475386,90668.0,90663.0,0.01102985]
[1768048481383,0.0475386,90668.0,90662.0,0.01141997]
[1768048481586,0.0475386,90668.0,90663.0,0.01102985]
[1768048481788,0.0475386,90668.0,90662.0,0.01141997]
[1768048482426,0.0475386,90668.0,90663.0,0.01102985]
[1768048483066,0.0475386,90668.0,90662.0,0.01141997]
[1768048483267,0.0475386,90668.0,90663.0,0.01102985]
[1768048483889,0.0475386,90668.0,90664.0,0.01102973]
[1768048484701,0.0475386,90668.0,90665.0,0.01102961]
[1768048484930,0.0475386,90668.0,90663.0,0.01102985]
[1768048485135,0.0475386,90668.0,90662.0,0.00039]
[1768048485328,0.0475386,90668.0,90663.0,0.01102985]
[1768048486052,0.0475386,90668.0,90664.0,0.01102973]
[1768048486502,0.0475386,90668.0,90663.0,0.01102985]
[1768048487582,0.0475386,90668.0,90664.0,0.01102973]
[1768048489955,0.0475386,90668.0,90663.0,0.01102985]
[1768048490371,0.0475386,90668.0,90662.0,0.01141997]
[1768048490576,0.0475386,90668.0,90664.0,0.01102973]
[1768048490780,0.0475386,90668.0,90663.0,0.01102985]
[1768048491142,0.0475386,90668.0,90664.0,0.01102973]
[1768048491343,0.0475386,90668.0,90663.0,0.01102985]
[1768048491913,0.0475386,90668.0,90664.0,0.01102973]
[1768048493613,0.0475386,90668.0,90665.0,0.01102961]
[1768048493763,0.0475386,90668.0,90663.0,0.01102985]
[1768048494813,0.0475386,90668.0,90662.0,0.01141997]
[1768048495620,0.0475386,90668.0,90664.0,0.01102973]
[1768048495806,0.0475386,90668.0,90665.0,0.01102961]
[1768048496573,0.0475386,90668.0,90665.0,0.01098457]
[1768048496942,0.0257416,90668.0,90665.0,0.01098457]
[1768048497871,0.0257416,90668.0,90665.0,0.01102961]
[1768048498664,0.0257416,90668.0,90663.0,0.01102985]
[1768048498811,0.0257416,90668.0,90664.0,0.01102973]
[1768048499013,0.02208,90669.0,90664.0,0.01102973]
[1768048499269,0.06735478,90669.0,90664.0,0.01102973]
[1768048499644,0.06735478,90669.0,90665.0,0.01102961]
[1768048500043,0.06735478,90669.0,90664.0,0.01102973]
[1768048500423,0.06735478,90669.0,90663.0,0.01102985]
[1768048500623,0.06735478,90669.0,90664.0,0.01102973]
[1768048500850,0.06735478,90669.0,90663.0,0.01102985]
[1768048501667,0.06735478,90669.0,90664.0,0.01102973]
[1768048501866,0.06735478,90669.0,90662.0,0.01141997]
[1768048502104,0.02208,90668.0,90666.0,0.01102949]
[1768048502309,0.02208,90668.0,90667.0,0.01102937]
[1768048502513,0.000999,90667.0,90662.0,0.01141997]
[1768048502848,0.02208,90668.0,90665.0,0.01102961]
[1768048503064,0.02208,90668.0,90664.0,0.01102973]
[1768048503288,0.02208,90668.0,90665.0,0.01102961]
[1768048503707,0.02208,90668.0,90664.0,0.01102973]
[1768048504721,0.01034148,90674.0,90664.0,0.01102973]
[1768048504722,0.02208,90669.0,90665.0,0.01102961]
[1768048505066,0.02208,90669.0,90664.0,0.01102973]
[1768048506488,0.02208,90669.0,90665.0,0.01102961]
[1768048508737,0.01034148,90674.0,90671.0,0.01102888]
[1768048508914,0.02208,90673.0,90672.0,0.01102876]
[1768048509112,0.01034148,90679.0,90673.0,0.01102864]
[1768048509314,0.02208,90678.0,90672.0,0.01102876]
[1768048509535,0.02208,90678.0,90673.0,0.01102864]
[1768048509733,0.02208,90678.0,90672.0,0.01102876]
[1768048510294,0.02208,90678.0,90671.0,0.01102888]
[1768048510493,0.02208,90678.0,90666.0,0.01102949]
[1768048510619,0.02208,90678.0,90669.0,0.01102912]
[1768048511060,0.02208,90678.0,90668.0,0.01102924]
[1768048511258,0.02208,90678.0,90670.0,0.011029]
[1768048511419,0.02208,90677.0,90670.0,0.011029]
[1768048512723,0.02208,90676.0,90670.0,0.06617395]
[1768048513077,0.02208,90676.0,90672.0,0.01102876]
[1768048513575,0.01034148,90679.0,90675.0,0.01102839]
[1768048513879,0.02208,90678.0,90673.0,0.06617076]
[1768048514072,0.02208,90678.0,90674.0,0.01102851]
[1768048514455,0.0001529,90688.0,90677.0,0.02214905]
[1768048514639,0.00050451,90688.0,90681.0,0.01102766]
[1768048514844,0.00050451,90688.0,90682.0,0.01102754]
[1768048515301,0.00050451,90688.0,90681.0,0.01102766]
[1768048515512,0.00050451,90688.0,90679.0,0.01102791]
[1768048515725,0.02208,90687.0,90679.0,0.01102791]
[1768048515940,0.02208,90687.0,90680.0,0.01102779]
[1768048516316,0.02208,90687.0,90682.0,0.01102754]
[1768048517369,0.02208,90687.0,90681.0,0.01102766]
[1768048518628,0.02208,90687.0,90682.0,0.01102754]
[1768048518825,0.02208,90687.0,90679.0,0.01102791]
[1768048519137,0.02208,90687.0,90681.0,0.01102766]
[1768048519515,0.00050451,90688.0,90682.0,0.01102754]
[1768048520037,0.00050451,90688.0,90681.0,0.01102766]
[1768048520779,0.00050451,90688.0,90682.0,0.01102754]
[1768048520982,0.02208,90687.0,90681.0,0.01102766]
[1768048521436,0.02208,90687.0,90682.0,0.01102754]
[1768048521636,0.02208,90687.0,90681.0,0.01102766]
[1768048522631,0.02208,90687.0,90680.0,0.01102779]
[1768048522822,0.00050451,90688.0,90682.0,0.01102754]
[1768048523196,0.00050451,90688.0,90685.0,0.01102718]
[1768048523949,0.00050451,90688.0,90683.0,0.01102742]
[1768048524146,0.00050451,90688.0,90684.0,0.0110273]
[1768048524315,0.00050451,90688.0,90680.0,0.01102779]
[1768048524526,0.00050451,90688.0,90684.0,0.0110273]
[1768048524732,0.00050451,90688.0,90683.0,0.01102742]
[1768048525703,0.00050451,90688.0,90684.0,0.0110273]
[1768048527260,0.00021344,90688.0,90684.0,0.0110273]
[1768048527458,0.00021344,90688.0,90685.0,0.01102718]
[1768048527665,0.00021344,90688.0,90684.0,0.0110273]
[1768048528438,0.01032368,90691.0,90688.0,0.01102681]
[1768048528642,5.812e-05,90691.0,90689.0,0.01102669]
[1768048528793,0.0103818,90691.0,90688.0,0.01102681]
[1768048529113,5.812e-05,90691.0,90688.0,0.01102681]
[1768048529668,5.812e-05,90691.0,90686.0,0.01102706]
[1768048530087,0.000999,90686.0,90678.0,0.01102803]
[1768048530293,0.000999,90686.0,90683.0,0.01102742]
[1768048530528,5.812e-05,90691.0,90683.0,0.06616453]
[1768048530721,5.812e-05,90691.0,90684.0,0.0661637]
[1768048530922,5.812e-05,90691.0,90686.0,0.01102706]
[1768048531121,0.04950351,90691.0,90686.0,0.01002806]
[1768048531648,0.04950351,90691.0,90687.0,0.01102693]
[1768048532173,0.04950351,90691.0,90686.0,0.01102706]
[1768048532714,0.04950351,90691.0,90684.0,0.06616329]
[1768048532715,0.04950351,90691.0,90679.0,0.01102791]
[1768048532983,0.04950351,90691.0,90673.0,0.04412414]
[1768048533180,0.04950351,90691.0,90684.0,0.0110273]
[1768048533562,0.04950351,90691.0,90685.0,0.01102718]
[1768048534141,0.04950351,90691.0,90684.0,0.0110273]
[1768048534358,0.04950351,90691.0,90686.0,0.01102706]
[1768048534605,0.04919894,90691.0,90686.0,0.01102706]
[1768048534993,0.04919894,90691.0,90687.0,0.01102693]
[1768048535392,0.04919894,90691.0,90686.0,0.01102706]
[1768048536321,0.04919894,90691.0,90687.0,0.01102693]
[1768048540339,0.04919894,90691.0,90678.0,0.01102803]
[1768048540480,0.0471911,90689.0,90678.0,0.01102803]
[1768048540684,0.0471911,90689.0,90678.0,0.00035161]
[1768048540911,0.0471911,90689.0,90678.0,0.01137964]
[1768048541358,0.05752264,90688.0,90678.0,0.00035161]
[1768048541557,0.0471911,90688.0,90678.0,0.00035161]
[1768048541814,0.0471911,90688.0,90678.0,0.01137964]
[1768048542033,0.0471911,90688.0,90678.0,0.00035161]
[1768048543250,0.05752637,90687.0,90678.0,0.00035161]
[1768048543450,0.0471911,90687.0,90678.0,0.00035161]
[1768048544030,0.0471911,90687.0,90678.0,0.01137964]
[1768048544473,0.0471911,90687.0,90678.0,0.00035161]
[1768048544694,0.0692711,90693.0,90687.0,0.000999]
[1768048544897,0.01033745,90692.0,90687.0,0.01202593]
[1768048545030,0.01033745,90692.0,90687.0,0.000999]
[1768048545232,0.01033745,90692.0,90686.0,0.01102706]
[1768048545475,0.01033745,90692.0,90684.0,0.0110273]
[1768048545851,0.01033745,90692.0,90685.0,0.01102718]
[1768048546058,0.01033745,90692.0,90686.0,0.01102706]
[1768048547784,0.05752855,90692.0,90686.0,0.010982]
[1768048548024,0.01033745,90691.0,90686.0,0.010982]
[1768048551619,0.01033745,90691.0,90687.0,0.01102693]
[1768048552331,0.01033745,90691.0,90686.0,0.010982]
[1768048552741,0.01033745,90691.0,90687.0,0.01102693]
[1768048553330,0.01033745,90691.0,90688.0,0.01102681]
[1768048553543,0.01033745,90691.0,90687.0,0.01102693]
[1768048553738,0.01033745,90691.0,90686.0,0.010982]
[1768048554055,0.01033745,90691.0,90687.0,0.01102693]
[1768048554252,0.01033745,90691.0,90684.0,0.06616379]
[1768048554458,0.01033745,90691.0,90686.0,0.01102706]
[1768048554973,0.01033745,90691.0,90687.0,0.01102693]
[1768048555185,0.01033745,90691.0,90686.0,0.01102706]
[1768048555887,0.01034075,90691.0,90686.0,0.01102706]
[1768048558050,0.01034075,90691.0,90685.0,0.01102718]
[1768048559134,0.01034075,90691.0,90686.0,0.01102706]
[1768048559361,0.01034075,90691.0,90687.0,0.01102693]
[1768048560148,0.05702246,90691.0,90686.0,0.01102706]
[1768048560374,0.01034136,90690.0,90687.0,0.01102693]
[1768048560598,0.01034136,90690.0,90686.0,0.01102706]
[1768048561004,0.01034136,90690.0,90686.0,0.010982]
[1768048561181,0.04668171,90691.0,90687.0,0.01102693]
[1768048561598,0.04668171,90691.0,90686.0,0.010982]
[1768048561800,0.01034137,90690.0,90687.0,0.01102693]
[1768048562333,0.04668171,90691.0,90687.0,0.01102693]
[1768048563471,0.04668171,90691.0,90683.0,0.01102742]
[1768048563605,0.04668171,90691.0,90685.0,0.01102718]
[1768048565212,0.04668171,90691.0,90684.0,0.0110273]
[1768048566628,0.04668171,90691.0,90685.0,0.01102718]
[1768048568342,0.04668171,90691.0,90681.0,0.01102766]
[1768048568743,0.04668171,90691.0,90683.0,0.01102742]
[1768048569044,0.04668171,90691.0,90684.0,0.0110273]
[1768048573695,0.04668171,90691.0,90683.0,0.01102742]
[1768048573894,0.04668171,90691.0,90684.0,0.0110273]
[1768048574302,0.01034645,90690.0,90684.0,0.0110273]
[1768048576306,0.01034645,90690.0,90684.0,0.01098224]
[1768048576571,0.01034645,90690.0,90684.0,0.0110273]
[1768048579048,0.01034645,90690.0,90686.0,0.01102706]
[1768048579259,0.01034645,90690.0,90685.0,0.01102718]
[1768048579607,0.01034645,90690.0,90684.0,0.0110273]
[1768048584706,0.01034645,90690.0,90685.0,0.01102718]
[1768048584920,0.01034645,90690.0,90685.0,0.00978527]
[1768048585126,0.01034645,90690.0,90684.0,0.0110273]
[1768048585687,0.01034645,90690.0,90685.0,0.01102718]
[1768048587095,0.01034645,90690.0,90685.0,0.01041706]
[1768048587336,0.01034645,90690.0,90685.0,0.00998791]
[1768048589174,0.01034645,90690.0,90685.0,0.00983558]
[1768048590086,0.01034645,90690.0,90686.0,0.01102706]
[1768048590264,0.01034645,90690.0,90686.0,0.01098199]
[1768048591452,0.01034645,90690.0,90685.0,0.00983558]
[1768048592979,0.01034645,90690.0,90686.0,0.01102706]
[1768048593187,0.01034645,90690.0,90683.0,0.01102742]
[1768048594196,0.01034645,90690.0,90685.0,0.01102718]
[1768048595473,0.01034645,90690.0,90686.0,0.01102706]
[1768048595678,0.01034645,90690.0,90685.0,0.01102718]
[1768048596026,0.01034645,90690.0,90685.0,0.01087485]
[1768048598067,0.01034645,90690.0,90686.0,0.01102706]
[1768048599531,0.01034645,90690.0,90685.0,0.01087485]
[1768048599898,0.01034645,90690.0,90685.0,0.01102718]
[1768048600285,0.01034645,90690.0,90684.0,0.0110273]
[1768048600493,0.01034645,90690.0,90685.0,0.01102718]
[1768048601377,0.05628106,90690.0,90685.0,0.01102718]
[1768048601579,0.04593461,90690.0,90685.0,0.01102718]
[1768048602812,0.04593461,90690.0,90686.0,0.01102706]
[1768048602956,0.04593461,90690.0,90685.0,0.01087485]
[1768048604713,0.04593461,90690.0,90686.0,0.01102706]
[1768048604964,0.04593461,90690.0,90685.0,0.01087485]
[1768048605559,0.0001529,90697.0,90690.0,0.03342207]
[1768048605760,0.01034826,90705.0,90704.0,0.06614923]
[1768048605917,0.00066445,90707.0,90704.0,0.05949338]
[1768048606124,0.00066445,90707.0,90706.0,0.05512314]
[1768048606323,0.00066445,90707.0,90706.0,0.05481854]
[1768048606528,0.04593461,90719.0,90708.0,0.06614591]
[1768048606729,0.02208,90714.0,90709.0,0.01102426]
[1768048606910,0.02208,90714.0,90710.0,0.01102414]
[1768048607274,0.02208,90714.0,90710.0,0.0109789]
[1768048607448,0.02208,90714.0,90711.0,0.01102402]
[1768048609130,0.02208,90714.0,90709.0,0.01102426]
[1768048609332,0.02208,90714.0,90710.0,0.01102414]
[1768048610045,0.02208,90714.0,90710.0,0.01097891]
[1768048610196,0.02208,90714.0,90711.0,0.01102402]
[1768048610388,0.02208,90715.0,90710.0,0.01097891]
[1768048611629,0.02208,90715.0,90702.0,0.01102511]
[1768048611962,0.02208,90715.0,90707.0,0.05512232]
[1768048612164,0.02208,90715.0,90709.0,0.01102426]
[1768048612932,0.02208,90714.0,90710.0,0.01097907]
[1768048613259,0.02208,90714.0,90710.0,0.01102414]
[1768048614293,0.02208,90714.0,90711.0,0.01102402]
[1768048614744,0.02208,90714.0,90710.0,0.01102414]
[1768048615735,0.02208,90714.0,90708.0,0.01102438]
[1768048616316,0.02208,90714.0,90707.0,0.0110245]
[1768048617165,0.02208,90714.0,90702.0,0.01102511]
[1768048617369,0.02208,90714.0,90700.0,0.21900668]
[1768048617681,0.02208,90714.0,90708.0,0.01102438]
[1768048617824,0.02208,90714.0,90707.0,0.0110245]
[1768048617825,0.02208,90714.0,90706.0,0.01102462]
[1768048618639,0.02208,90714.0,90708.0,0.01102438]
[1768048618844,0.05962148,90713.0,90699.0,0.01102547]
[1768048619046,0.04859771,90709.0,90697.0,0.00051157]
[1768048619252,0.04859771,90705.0,90697.0,0.00051157]
[1768048619570,0.04859771,90703.0,90697.0,0.00051157]
[1768048628805,0.0596227,90703.0,90697.0,0.00051157]
[1768048629007,0.04859771,90703.0,90697.0,0.00051157]
[1768048631539,0.02208,90704.0,90697.0,0.01153729]
[1768048632120,0.02208,90704.0,90698.0,0.0110256]
[1768048632921,0.02208,90704.0,90697.0,0.01153729]
[1768048634517,0.02208,90704.0,90697.0,0.00051157]
[1768048657631,0.02208,90704.0,90697.0,0.01153729]
[1768048657827,0.02208,90704.0,90697.0,0.00051157]
[1768048660593,0.02208,90704.0,90697.0,0.01153729]
[1768048660780,0.02208,90704.0,90697.0,0.00051157]
[1768048661408,0.02208,90704.0,90697.0,0.01153729]
[1768048661826,0.02208,90704.0,90697.0,0.00051157]
[1768048661996,0.02208,90704.0,90697.0,0.01153729]
[1768048663885,0.02208,90704.0,90698.0,0.0110256]
[1768048665078,0.02208,90704.0,90697.0,0.00051157]
[1768048686746,0.02208,90704.0,90697.0,0.01153729]
[1768048687107,0.02208,90704.0,90697.0,0.00051157]
[1768048688368,0.02208,90704.0,90697.0,0.01153729]
[1768048688681,0.02208,90704.0,90697.0,0.00051157]
[1768048688968,0.02208,90704.0,90697.0,0.01153729]
[1768048689552,0.02208,90704.0,90697.0,0.00051157]
[1768048690437,0.02208,90704.0,90697.0,0.01153729]
[1768048691154,0.02208,90704.0,90697.0,0.00051157]
[1768048691364,0.02208,90704.0,90697.0,0.00042141]
[1768048691782,0.02208,90704.0,90697.0,0.01144713]
[1768048692161,0.02208,90704.0,90698.0,0.0110256]
[1768048692360,0.02208,90704.0,90697.0,0.01144713]
[1768048692563,0.02208,90704.0,90698.0,0.0110256]
[1768048692765,0.02208,90704.0,90697.0,0.01144713]
[1768048692972,0.02208,90704.0,90697.0,0.00042141]
[1768048694041,0.02208,90704.0,90697.0,0.01144713]
[1768048694042,0.02212266,90704.0,90697.0,0.01144713]
[1768048697382,0.02212266,90704.0,90697.0,0.00042141]
[1768048703234,0.02212266,90704.0,90697.0,0.01144713]
[1768048703430,0.02212266,90704.0,90697.0,0.00042141]
[1768048705252,0.02212266,90704.0,90697.0,0.00026902]
[1768048706757,0.02212266,90704.0,90697.0,0.01129474]
[1768048707452,0.02212266,90704.0,90697.0,0.01113437]
[1768048709185,0.02212266,90704.0,90698.0,0.0110256]
[1768048710006,0.02212266,90704.0,90697.0,0.01113437]
[1768048714783,0.02212266,90704.0,90697.0,0.00010865]
[1768048714985,0.02212266,90704.0,90697.0,0.01113437]
[1768048717197,0.02212266,90704.0,90697.0,0.00010865]
[1768048718244,0.02212266,90704.0,90697.0,0.01113437]
[1768048718449,0.02212266,90704.0,90697.0,0.00010865]
[1768048720565,0.02212266,90704.0,90697.0,0.01113437]
[1768048720930,0.02212266,90704.0,90697.0,0.00010865]
[1768048723007,0.02212266,90704.0,90697.0,0.01113437]
[1768048723207,0.02212266,90704.0,90697.0,0.00010865]
[1768048723433,0.02212266,90704.0,90696.0,0.01102584]
[1768048725560,0.02212266,90704.0,90694.0,0.01102608]
[1768048725986,0.02212266,90704.0,90696.0,0.01102584]
[1768048726143,0.02212266,90704.0,90697.0,0.01102572]
[1768048727084,0.02212266,90704.0,90698.0,0.0110256]
[1768048727294,0.02212266,90704.0,90697.0,0.01102572]
[1768048727447,0.02212266,90704.0,90698.0,0.0110256]
[1768048727653,0.02212266,90704.0,90697.0,0.01102572]
[1768048728495,0.02212266,90704.0,90698.0,0.0110256]
[1768048728916,0.02212266,90704.0,90697.0,0.01102572]
[1768048729920,0.02212266,90704.0,90695.0,0.01102596]
[1768048730508,0.02212266,90704.0,90696.0,0.01102584]
[1768048731724,0.02212266,90704.0,90697.0,0.01102572]
[1768048732938,0.02212266,90704.0,90694.0,0.01102608]
[1768048733141,0.02212266,90704.0,90695.0,0.01102596]
[1768048733348,0.02212266,90704.0,90690.0,0.06615937]
[1768048733543,0.02212266,90704.0,90692.0,0.01102633]
[1768048734303,0.02212266,90704.0,90698.0,0.0110256]
[1768048734547,0.02208,90706.0,90704.0,0.01198121]
[1768048734771,0.02208,90706.0,90705.0,0.01102475]
[1768048735450,0.02208,90706.0,90703.0,0.01102499]
[1768048735704,0.021124,90706.0,90703.0,0.01102499]
[1768048737231,0.021124,90706.0,90704.0,0.05512436]
[1768048738003,0.021124,90706.0,90704.0,0.05497206]
[1768048738702,0.021124,90706.0,90704.0,0.05481976]
[1768048740107,0.021124,90706.0,90703.0,0.01087267]
[1768048740491,0.021124,90706.0,90704.0,0.05512382]
[1768048740910,0.021124,90706.0,90705.0,0.05512375]
[1768048744707,0.021124,90706.0,90704.0,0.05512425]
[1768048745250,0.021124,90706.0,90705.0,0.05512375]
[1768048745373,0.021124,90706.0,90704.0,0.05512424]
[1768048746076,0.021124,90706.0,90688.0,0.01102681]
[1768048746282,0.000999,90704.0,90692.0,0.01106899]
[1768048746720,0.08002821,90706.0,90692.0,0.01106899]
[1768048747078,0.06900359,90706.0,90693.0,0.0110262]
[1768048747279,0.04787959,90705.0,90691.0,0.01102645]
[1768048747508,0.04787959,90705.0,90693.0,0.0110262]
[1768048747677,0.04787959,90705.0,90692.0,0.01102633]
[1768048747915,0.04787959,90705.0,90693.0,0.0110262]
[1768048748653,0.04787959,90705.0,90694.0,0.01102608]
[1768048750053,0.04787959,90705.0,90691.0,0.01102645]
[1768048750255,0.05890434,90705.0,90688.0,0.01102681]
[1768048750477,0.01102511,90702.0,90688.0,0.01102681]
[1768048750889,0.01102523,90701.0,90688.0,0.01102681]
[1768048751111,0.01102511,90702.0,90689.0,0.01102669]
[1768048751242,0.01102499,90703.0,90690.0,0.01102657]
[1768048751446,0.01102487,90704.0,90690.0,0.01102657]
[1768048751686,0.01102499,90703.0,90690.0,0.01102657]
[1768048752067,0.05890434,90705.0,90690.0,0.01102657]
[1768048753424,0.05890446,90704.0,90690.0,0.01102657]
[1768048754390,0.05890446,90704.0,90689.0,0.01102669]
[1768048754946,0.01102499,90703.0,90689.0,0.01087438]
[1768048755143,0.05890446,90704.0,90689.0,0.01087438]
[1768048755295,0.05890446,90704.0,90690.0,0.01102657]
[1768048755497,0.05890446,90704.0,90689.0,0.01087438]
[1768048755780,0.01102499,90703.0,90690.0,0.01102657]
[1768048756363,0.01102499,90703.0,90689.0,0.01087438]
[1768048757752,0.01102499,90703.0,90690.0,0.01102657]
[1768048758473,0.05890446,90704.0,90690.0,0.01102657]
[1768048758650,0.04787959,90704.0,90691.0,0.01102645]
[1768048759057,0.05890446,90704.0,90688.0,0.01102681]
[1768048759238,0.05890446,90704.0,90690.0,0.01102657]
[1768048759637,0.05890446,90704.0,90691.0,0.01102645]
[1768048759844,0.05890446,90704.0,90690.0,0.01102657]
[1768048760281,0.01102499,90703.0,90690.0,0.01102657]
[1768048760481,0.01102499,90703.0,90689.0,0.01102669]
[1768048762534,0.01102511,90702.0,90689.0,0.01102669]
[1768048762724,0.01102511,90702.0,90688.0,0.01102681]
[1768048762924,0.01102511,90702.0,90689.0,0.01102669]
[1768048763383,0.01102499,90703.0,90689.0,0.01102669]
[1768048765115,0.01102511,90702.0,90688.0,0.01102681]
[1768048765790,0.01102523,90701.0,90687.0,0.06080961]
[1768048766442,0.01102511,90702.0,90688.0,0.01102681]
[1768048766803,0.01102499,90703.0,90687.0,0.11594427]
[1768048767396,0.01102523,90701.0,90687.0,0.06080961]
[1768048767571,0.01102523,90701.0,90688.0,0.01102681]
[1768048767800,0.01102523,90701.0,90687.0,0.06080961]
[1768048767951,0.01102535,90700.0,90687.0,0.04978268]
[1768048768305,0.01102511,90702.0,90687.0,0.04978268]
[1768048768681,0.05890446,90704.0,90687.0,0.06080961]
[1768048768847,0.05890446,90704.0,90687.0,0.11594379]
[1768048769049,0.01102511,90702.0,90689.0,0.01102669]
[1768048769434,0.01102511,90702.0,90688.0,0.01102681]
[1768048769890,0.01102499,90703.0,90688.0,0.01102681]
[1768048770048,0.01102499,90703.0,90689.0,0.01102669]
[1768048770256,0.01102499,90703.0,90688.0,0.01102681]
[1768048770257,0.01102511,90702.0,90688.0,0.01102681]
[1768048770659,0.01102499,90703.0,90689.0,0.01102669]
[1768048772440,0.01102499,90703.0,90689.0,0.01087438]
[1768048773413,0.01102511,90702.0,90688.0,0.01102681]
[1768048774488,0.01102511,90702.0,90687.0,0.06080961]
[1768048774489,0.01102523,90701.0,90687.0,0.06080961]
[1768048774845,0.01102499,90703.0,90687.0,0.06080961]
[1768048775056,0.01102499,90703.0,90689.0,0.01102669]
[1768048775275,0.05890446,90704.0,90690.0,0.01102657]
[1768048775874,0.04787959,90704.0,90691.0,0.01102645]
[1768048776651,0.05890446,90704.0,90690.0,0.01102657]
[1768048777811,0.05890446,90704.0,90689.0,0.01102669]
[1768048777812,0.01102499,90703.0,90689.0,0.01102669]
[1768048777967,0.01102499,90703.0,90688.0,0.01102681]
[1768048778163,0.05890446,90704.0,90688.0,0.06616064]
[1768048779307,0.04787959,90704.0,90690.0,0.01102657]
[1768048780292,0.04787959,90704.0,90691.0,0.01102645]
[1768048780426,0.05890446,90704.0,90690.0,0.01102657]
[1768048781278,0.01102499,90703.0,90689.0,0.01102669]
[1768048781458,0.01102499,90703.0,90690.0,0.01102657]
[1768048782066,0.05890446,90704.0,90690.0,0.01102657]
[1768048783562,0.01102499,90703.0,90689.0,0.01102669]
[1768048783765,0.05890446,90704.0,90690.0,0.01102657]
[1768048783988,0.01102499,90703.0,90689.0,0.01102669]
[1768048784730,0.05890446,90704.0,90689.0,0.01102669]
[1768048785071,0.11402935,90704.0,90688.0,0.01102681]
[1768048786132,0.01102511,90702.0,90689.0,0.01102669]
[1768048786519,0.01102511,90702.0,90688.0,0.01102681]
[1768048786726,0.05890446,90704.0,90688.0,0.01102681]
[1768048786880,0.01102499,90703.0,90690.0,0.01102657]
[1768048787085,0.01102499,90703.0,90690.0,0.01087426]
[1768048787627,0.05890446,90704.0,90689.0,0.01102669]
[1768048787830,0.05890446,90704.0,90690.0,0.01102657]
[1768048788024,0.04787959,90704.0,90691.0,0.01102645]
[1768048788230,0.04787959,90704.0,90692.0,0.01102633]
[1768048788544,0.05890446,90704.0,90690.0,0.23010889]
[1768048789042,0.04787959,90704.0,90691.0,0.01102645]
[1768048791762,0.05890446,90704.0,90691.0,0.01102645]
[1768048792720,0.04787959,90704.0,90691.0,0.01102645]
[1768048793348,0.04787959,90704.0,90690.0,0.01102657]
[1768048794380,0.05890446,90704.0,90690.0,0.01102657]
[1768048794537,0.01102499,90703.0,90689.0,0.01102669]
[1768048794946,0.05890446,90704.0,90690.0,0.01102657]
[1768048796117,0.01102499,90703.0,90687.0,0.10491732]
[1768048796316,0.01102499,90703.0,90687.0,0.06080961]
[1768048797299,0.01102511,90702.0,90688.0,0.01102681]
[1768048797766,0.05890446,90704.0,90688.0,0.01102681]
[1768048797968,0.05890446,90704.0,90690.0,0.01102657]
[1768048799233,0.01102499,90703.0,90690.0,0.01102657]
[1768048800466,0.01102499,90703.0,90688.0,0.01102681]
[1768048801235,0.05890446,90704.0,90690.0,0.01102657]
[1768048802225,0.04787959,90704.0,90691.0,0.01102645]
[1768048802421,0.0216307,90706.0,90696.0,0.05888695]
[1768048802625,0.0216307,90706.0,90698.0,0.0110256]
[1768048802871,0.0216307,90706.0,90700.0,0.01102535]
[1768048803027,0.0216307,90706.0,90698.0,0.01098039]
[1768048803028,0.0216307,90706.0,90699.0,0.01102547]
[1768048803207,0.0216307,90706.0,90697.0,0.06615427]
[1768048803411,0.0216307,90706.0,90697.0,0.01102572]
[1768048804018,0.0216307,90706.0,90699.0,0.01102547]
[1768048804537,0.0216307,90706.0,90700.0,0.01102535]
[1768048805687,0.0216307,90706.0,90701.0,0.01102523]
[1768048805868,0.0216307,90706.0,90700.0,0.01102535]
[1768048806276,0.0216307,90706.0,90699.0,0.01102547]
[1768048806768,0.0216307,90706.0,90700.0,0.01102535]
[1768048807108,0.0005067,90706.0,90700.0,0.01102535]
[1768048807904,0.0005067,90706.0,90699.0,0.01102547]
[1768048808110,0.0005067,90706.0,90700.0,0.01102535]
[1768048809085,0.0005067,90706.0,90699.0,0.01102547]
[1768048809285,0.0005067,90706.0,90700.0,0.01098015]
[1768048809486,0.0005067,90706.0,90700.0,0.01102535]
[1768048809854,0.0005067,90706.0,90701.0,0.01102523]
[1768048810385,0.0005067,90706.0,90699.0,0.01102547]
[1768048810592,0.0005067,90706.0,90700.0,0.01102535]
[1768048810795,0.0005067,90706.0,90701.0,0.01102523]
[1768048810992,0.0005067,90706.0,90703.0,0.01102499]
[1768048811191,0.0005067,90706.0,90703.0,0.05793447]
[1768048811608,0.0005067,90706.0,90705.0,0.10203323]
[1768048811992,0.00023331,90706.0,90705.0,0.10203323]
[1768048812227,0.01034039,90713.0,90707.0,0.00034002]
[1768048812573,0.0001529,90716.0,90708.0,0.05793386]
[1768048813336,0.0001529,90716.0,90708.0,0.04690948]